lending/lending_fUSD_20240721
["ID","MTS","AMOUNT","RATE_DAILY","PERIOD"]
[332814607,1721545850571,-150.0,0.00029053,7]
[332814609,1721545850581,-592.11,0.00029109,120]
[332814611,1721545850591,-311.81082437,0.00029175,7]
[332814613,1721545850600,-154.50737355,0.00029228,2]
[332814615,1721545850610,-150.0,0.00029291,7]
[332814617,1721545850619,-150.0,0.00029291,7]
[332814619,1721545850629,-157.03570202,0.00029299,2]
[332814621,1721545850638,-150.0,0.00029342,7]
[332814623,1721545850648,-150.0,0.00029342,7]
[332814625,1721545850658,-900.0,0.00029384,2]
[332814627,1721545850667,-311.81082437,0.00029421,7]
[332814628,1721545850676,-150.0,0.00029421,7]
[332814630,1721545850686,-165.0,0.000295,18]
[332814632,1721545850696,-150.0,0.00029631,7]
[332814634,1721545850705,-150.0,0.00029648,7]
[332814636,1721545850714,-155.26,0.00029653,2]
[332814638,1721545850726,-311.81082437,0.00029667,7]
[332814640,1721545850736,-1829.44,0.000297,2]
[332814642,1721545850748,-150.0,0.0002975,4]
[332814644,1721545850757,-155.0,0.00029762,2]
[332814646,1721545850767,-452.30751183,0.00029762,2]
[332814648,1721545850776,-1821.692122,0.0002978,10]
[332814650,1721545850785,-1268.79,0.000298,2]
[332814652,1721545850795,-1322.96,0.000298,14]
[332814654,1721545850804,-1000.0,0.000298,10]
[332814656,1721545850814,-366.67908298,0.0002981,2]
[332814658,1721545850824,-1000.0,0.0002982,10]
[332814660,1721545850834,-1000.0,0.0002984,10]
[332814662,1721545850844,-1000.0,0.0002986,10]
[332814664,1721545850855,-150.0,0.00029863,7]
[332814666,1721545850867,-1000.0,0.0002988,10]
[332814668,1721545850877,-9079.42431,0.00029884,2]
[332814670,1721545850887,-842.31,0.0002989,2]
[332814672,1721545850897,-465.68,0.0002989,2]
[332814674,1721545850908,-833.39,0.0002989,2]
[332814676,1721545850918,-420.03,0.0002989,2]
[332814678,1721545850927,-833.39,0.0002989,2]
[332814680,1721545850937,-420.03,0.0002989,2]
[332814682,1721545850947,-833.39,0.0002989,2]
[332814684,1721545850957,-1000.0,0.000299,10]
[332814686,1721545850967,-311.81082437,0.00029912,7]
[332814688,1721545850979,-1000.0,0.0002992,10]
[332814690,1721545850988,-150.0,0.00029921,7]
[332814692,1721545850997,-592.11,0.00029931,120]
[332814694,1721545851007,-1000.0,0.0002994,10]
[332814696,1721545851017,-1000.0,0.0002996,10]
[332814698,1721545851026,-1000.0,0.0002998,10]
[332814700,1721545851036,-200.0,0.00029987,30]
[332814702,1721545851046,-477.99277271,0.00029999,2]
[332814704,1721545851056,-1000.0,0.0003,23]
[332814706,1721545851065,-769.00048745,0.0003,4]
[332814708,1721545851075,-1000.0,0.0003,20]
[332814710,1721545851084,-3192.59974794,0.0003,2]
[332814712,1721545851094,-998.9403624,0.0003,4]
[332814714,1721545851104,-259.87017808,0.0003,4]
[332814716,1721545851113,-218.32,0.0003,21]
[332814718,1721545851123,-2001.4126,0.0003,2]
[332814720,1721545851132,-2003.8254,0.0003,2]
[332814722,1721545851142,-413.0,0.0003,7]
[332814724,1721545851152,-1523.6,0.0003,2]
[332814726,1721545851162,-2000.0,0.0003,2]
[332814728,1721545851171,-2000.0,0.0003,2]
[332814730,1721545851181,-2000.0,0.0003,2]
[332814732,1721545851190,-2002.9061,0.0003,2]
[332814734,1721545851199,-1777.7626,0.0003,2]
[332814736,1721545851209,-2000.0,0.0003,2]
[332814738,1721545851218,-500.0,0.0003,2]
[332814740,1721545851229,-500.0,0.0003,2]
[332814742,1721545851238,-2000.0,0.0003,2]
[332814744,1721545851247,-475.3025251,0.0003,2]
[332814745,1721545851256,-1523.599999,0.0003,2]
[332814747,1721545851266,-1955.999999,0.0003,30]
[332814749,1721545851275,-10000.0,0.0003,15]
[332814751,1721545851284,-2000.0,0.0003,2]
[332814753,1721545851293,-2000.0,0.0003,2]
[332814755,1721545851304,-165.0,0.0003,18]
[332814757,1721545851314,-3069.30043624,0.0003,2]
[332814759,1721545851324,-208.0,0.0003,2]
[332814761,1721545851333,-1000.0,0.0003,11]
[332814763,1721545851343,-1597.58342895,0.0003,2]
[332814765,1721545851352,-150.0,0.0003,10]
[332814767,1721545851361,-183.422278,0.0003,7]
[332814769,1721545851370,-1082.86710689,0.0003,2]
[332814771,1721545851381,-183.422278,0.0003,7]
[332814773,1721545851391,-151.0,0.0003,7]
[332814775,1721545851400,-151.0,0.0003,7]
[332814777,1721545851409,-151.0,0.0003,7]
[332814778,1721545851419,-150.0,0.00030006,7]
[332814780,1721545851428,-151.0,0.00030048,2]
[332814783,1721545851438,-3612.1489188,0.000301,2]
[332814785,1721545851448,-2000.0,0.000301,2]
[332814787,1721545851458,-370.0,0.000301,2]
[332814789,1721545851468,-767.78924264,0.000301,2]
[332814791,1721545851478,-1595.38891698,0.000301,2]
[332814793,1721545851488,-1008.38,0.000301,2]
[332814795,1721545851497,-7497.0,0.000301,30]
[332814797,1721545851506,-796.06482166,0.000301,2]
[332814799,1721545851515,-311.81082437,0.00030158,7]
[332814800,1721545851524,-150.0,0.0003021,7]
[332814802,1721545851533,-150.0,0.0003021,7]
[332814804,1721545851542,-155.26,0.00030298,2]
[332814806,1721545851551,-200.51567682,0.00030303,10]
[332814808,1721545851561,-690.80792636,0.00030303,4]
[332814809,1721545851570,-150.0,0.00030364,7]
[332814810,1721545851579,-311.81082437,0.00030403,7]
[332814811,1721545851589,-536.78493138,0.0003048,10]
[332814812,1721545851598,-150.0,0.000305,7]
[332814813,1721545851607,-165.0,0.000305,19]
[332814814,1721545851616,-150.0,0.00030526,7]
[332814815,1721545851625,-311.81082437,0.00030649,7]
[332814816,1721545851634,-155.31941387,0.00030652,7]
[332814817,1721545851643,-150.0,0.00030721,7]
[332814818,1721545851652,-150.0,0.00030721,7]
[332814819,1721545851661,-592.11,0.00030753,120]
[332814820,1721545851671,-150.0,0.00030789,7]
[332814821,1721545851680,-1600.57,0.00030834,2]
[332814822,1721545851689,-355.09,0.00030849,2]
[332814823,1721545851699,-250.4495454,0.0003087,14]
[332814824,1721545851708,-311.81082437,0.00030895,7]
[332814825,1721545851717,-1500.0,0.000309,11]
[332814826,1721545851727,-155.26,0.00030943,2]
[332814827,1721545851737,-191.7173859,0.00031,4]
[332814829,1721545851746,-1000.0,0.00031,20]
[332814831,1721545851756,-1829.44,0.00031,2]
[332814833,1721545851765,-550.0,0.00031,2]
[332814835,1721545851775,-165.0,0.00031,19]
[332814836,1721545851784,-183.422278,0.00031008,7]
[332814838,1721545851793,-183.42227,0.00031008,7]
[332814840,1721545851803,-151.0,0.00031008,7]
[332814842,1721545851815,-151.0,0.00031008,7]
[332814844,1721545851824,-247.103402,0.00031008,7]
[332814846,1721545851833,-9402.3124166,0.00031009,2]
[332814848,1721545851842,-9402.31241659,0.00031009,2]
[332814850,1721545851852,-9402.31241659,0.00031009,2]
[332814852,1721545851862,-150.0,0.00031079,7]
[332814854,1721545851871,-150.0,0.00031079,7]
[332814856,1721545851881,-150.0,0.00031079,7]
[332814858,1721545851890,-150.0,0.00031079,7]
[332814860,1721545851899,-150.0,0.00031079,7]
[332814862,1721545851909,-150.0,0.00031079,7]
[332814864,1721545851918,-311.81082437,0.0003114,7]
[332814866,1721545851929,-150.0,0.00031368,7]
[332814868,1721545851938,-1008.38,0.00031375,2]
[332814870,1721545851948,-311.81082437,0.00031386,7]
[332814872,1721545851958,-4096.78398648,0.00031414,15]
[332814874,1721545851968,-18446.25925329,0.0003143,4]
[332814876,1721545851979,-150.0,0.00031436,7]
[332814878,1721545851990,-1914.93653259,0.00031476,15]
[332814880,1721545852000,-814.0,0.000315,23]
[332814882,1721545852011,-165.0,0.000315,20]
[332814884,1721545852020,-592.11,0.00031575,120]
[332814886,1721545852030,-155.31941387,0.00031577,7]
[332814888,1721545852039,-155.26,0.00031587,2]
[332814890,1721545852049,-311.81082437,0.00031631,7]
[332814892,1721545852058,-150.0,0.00031631,7]
[332814894,1721545852067,-150.0,0.00031658,7]
[332814896,1721545852077,-2971.7687829,0.00031778,2]
[332814898,1721545852086,-2438.324563,0.00031778,2]
[332814900,1721545852095,-150.0,0.00031794,7]
[332814902,1721545852104,-493.13129645,0.000318,2]
[332814904,1721545852113,-48007.9249828,0.000318,2]
[332814907,1721545852136,-87665.06358726,0.000318,2]
[332814909,1721545852147,-11132.90869594,0.000318,2]
[332814973,1721545852748,-312.64,0.000139,2]
[332814976,1721545852762,-6.18205405,0.000139,2]
[332814978,1721545852771,-369.75023573,0.000318,2]
[332814980,1721545852782,-1650.24238056,0.000318,2]
[332814986,1721545852828,-2659.75488631,0.000318,2]
[332815021,1721545853146,-340.12109764,0.000318,2]
[332815037,1721545853287,-550.0,0.000318,2]
[332815690,1721546067012,-900.0,0.00013398,2]
[332815692,1721546109011,400.0,0.00024943,120]
[332815694,1721546146052,-164.32825763,0.00013278,2]
[332815699,1721546234409,-268.48309171,0.00013278,2]
[332815700,1721546457872,156.81,0.00020221,30]
[332815701,1721546529746,-242.90606631,0.00013,2]
[332815702,1721546530256,-292.01363369,0.00013,2]
[332815704,1721546719224,150.0,9e-05,2]
[332815705,1721546719247,150.0,9e-05,2]
[332815706,1721546719272,150.0,9e-05,2]
[332815707,1721546719295,150.0,9e-05,2]
[332815708,1721546719317,150.0,9e-05,2]
[332815709,1721546719340,150.0,9e-05,2]
[332815710,1721546719363,150.0,9e-05,2]
[332815711,1721546719386,150.0,9e-05,2]
[332815712,1721546719411,150.0,9e-05,2]
[332815713,1721546719437,2026.68110264,9e-05,2]
[332815714,1721546728785,150.0,0.000118,2]
[332815715,1721546728810,150.0,0.000118,2]
[332815716,1721546728832,150.0,0.000118,2]
[332815717,1721546728854,150.0,0.000118,2]
[332815718,1721546728876,150.0,0.000118,2]
[332815719,1721546729014,7778.17647366,0.000118,2]
[332815720,1721546730634,-505.59444521,0.00012749,2]
[332815721,1721546735466,1476.9626867,0.00011,2]
[332815722,1721546735920,-150.0,0.00012749,2]
[332815723,1721546754288,7375.27752799,6.94e-05,2]
[332815725,1721546822621,229.11843409,6.94e-05,2]
[332815726,1721546822645,28280.93889363,6.94e-05,2]
[332815733,1721546851829,189.31742959,8.412e-05,2]
[332815734,1721546852547,313.25615761,0.00011,2]
[332815735,1721546857994,1904.3722334,8.412e-05,2]
[332815737,1721546880673,1983.36630478,0.0001,2]
[332815754,1721547016785,225.43552812,0.00011959,2]
[332815755,1721547027725,274.16200869,0.00011959,2]
[332815760,1721547031622,-164.32825763,0.00012087,2]
[332815761,1721547031633,-299.63561097,0.00012087,2]
[332815762,1721547031645,-235.28408903,0.00012087,2]
[332815763,1721547031655,-521.74362309,0.00012121,2]
[332815764,1721547031665,-442.97228788,0.00012187,2]
[332815765,1721547031690,-486.22771212,0.00012187,2]
[332815766,1721547031699,-600.30489603,0.0001254,2]
[332815767,1721547031776,-2236.85749236,0.0001254,2]
[332815768,1721547031786,-200.0,0.00012678,2]
[332815769,1721547031799,-1000.0,0.00012722,2]
[332815770,1721547031808,-432.82,0.00012813,2]
[332815771,1721547031818,-300.0,0.00012838,2]
[332815772,1721547031827,-19667.99679093,0.00012839,2]
[332815773,1721547031843,-4232.00320907,0.00012839,2]
[332815774,1721547031853,-198.8,0.0001304,2]
[332815775,1721547031863,-1179.87702956,0.0001304,2]
[332815776,1721547031875,-3678.48,0.00013144,2]
[332815777,1721547031885,-2199.77755191,0.00013378,2]
[332815778,1721547031895,-2383.0098586,0.00013378,2]
[332815779,1721547031905,-150.0,0.0001343,2]
[332815780,1721547031915,-1445.92071075,0.00013489,2]
[332815781,1721547031925,-1266.87800095,0.00013489,2]
[332815782,1721547031935,-1255.14092913,0.0001351,2]
[332815783,1721547031945,-1198.00207908,0.00013561,2]
[332815784,1721547031955,-261.87225124,0.00013579,2]
[332815785,1721547031966,-420.99737227,0.00013579,2]
[332815786,1721547031976,-4276.6610627,0.0001358,2]
[332815787,1721547031986,-242.45687479,0.0001367,2]
[332815788,1721547031996,-157.5338109,0.0001367,2]
[332815789,1721547032006,-263.75418329,0.0001367,2]
[332815790,1721547032016,-164.07250622,0.00013698,2]
[332815791,1721547032026,-275.08386142,0.00013698,2]
[332815792,1721547032035,-717.39,0.00013699,2]
[332815793,1721547032044,-179.99,0.00013699,2]
[332815794,1721547032054,-455.27096714,0.00013699,2]
[332815795,1721547032064,-265.08570858,0.0001372,2]
[332815796,1721547032074,-155.0,0.0001372,2]
[332815797,1721547032083,-385.1,0.00013821,2]
[332815798,1721547032093,-607.26,0.00013825,2]
[332815799,1721547032102,-499.99,0.00013889,2]
[332815800,1721547032112,-2048.71521336,0.0001389,2]
[332815801,1721547032122,-549.56510267,0.000139,2]
[332815802,1721547032131,-400.81453467,0.00013929,2]
[332815803,1721547032140,-151.06330317,0.00013981,2]
[332815804,1721547032150,-22523.16317958,0.0001399,3]
[332815805,1721547032179,-6075.0,0.0001399,3]
[332815806,1721547032190,-700.0,0.0001399,3]
[332815807,1721547032201,-34784.15741947,0.0001399,3]
[332815812,1721547032269,-459.92029315,0.0001399,3]
[332815813,1721547032280,-66785.0,0.0001399,3]
[332815814,1721547032292,-437.0869578,0.0001399,3]
[332815815,1721547032302,-20569.11126485,0.0001399,3]
[332815820,1721547037773,-2837.16238839,0.00012397,2]
[332815821,1721547037783,-8741.77915865,0.0001399,3]
[332815822,1721547037792,-334.5949409,0.00013999,2]
[332815823,1721547037806,-1356.4570231,0.00014,2]
[332815824,1721547037815,-1192.92292666,0.00014,2]
[332815825,1721547037830,-474.75933617,0.00014,2]
[332815826,1721547037842,-378.88348829,0.00014,2]
[332815827,1721547037867,-2611.44251202,0.00014,2]
[332815828,1721547037890,-280.407,0.00014,2]
[332815829,1721547037913,-888.51999758,0.00014,2]
[332815830,1721547037936,-1046.88,0.00014,2]
[332815831,1721547037947,-347.9736861,0.00014,2]
[332815832,1721547037958,-5580725.34551632,0.00014,2]
[332816002,1721547039764,-959.24343264,0.00014,2]
[332816003,1721547039776,-250.0,0.00014,2]
[332816004,1721547039967,-954.5527453,0.00014,2]
[332816277,1721547042878,-2224.85085809,0.00014,2]
[332816279,1721547042891,-897.1897159,0.00014,2]
[332816281,1721547042903,-404.83116397,0.00014,2]
[332816283,1721547042914,-345.020001,0.00014,2]
[332816328,1721547043331,-335.7347433,0.00014,2]
[332816330,1721547043344,-4518.17154114,0.00014,2]
[332816380,1721547045681,-331.28,0.00014,2]
[332816381,1721547047336,-1441.17346638,0.00014,2]
[332816382,1721547047400,-768.85,0.00014,2]
[332816383,1721547047680,-680.27394154,0.00014,2]
[332816384,1721547047691,-668.56,0.00014,2]
[332816404,1721547201862,156.81,0.00018849,30]
[332817206,1721547309854,882.74,0.00011237,2]
[332817207,1721547404969,150.0,0.00011,3]
[332817208,1721547404990,150.0,0.00011,3]
[332817209,1721547405010,150.0,0.00011,3]
[332817210,1721547405037,150.0,0.00011,3]
[332817211,1721547405061,150.0,0.00011,3]
[332817212,1721547405083,211.39571112,0.00011,3]
[332817213,1721547405104,38.60428888,0.00011,3]
[332817217,1721547561475,229.11843409,0.00011,2]
[332817218,1721547561497,7334.33073712,0.00011,2]
[332817219,1721547572463,20358.82820975,0.00011,2]
[332817221,1721547691008,6380.72824428,0.00011,2]
[332817222,1721547727430,-8551.676023,0.00012735,2]
[332817223,1721547727454,-1054.58,0.000128,2]
[332817224,1721547727479,-320.0,0.00012809,2]
[332817225,1721547727502,-73.743977,0.00012844,2]
[332817226,1721547728250,-226.256023,0.00012844,2]
[332817227,1721547728275,-1000.0,0.00012845,2]
[332817228,1721547728300,-6408.96,0.00012872,2]
[332817229,1721547728322,-1000.0,0.00013,3]
[332817230,1721547729950,1364.783977,0.00012928,2]
[332817231,1721547729976,10000.0,0.00012928,2]
[332817232,1721547729999,10000.0,0.00012928,2]
[332817233,1721547730027,3920.92349316,0.00012928,2]
[332817234,1721547762861,250.0,0.00012874,2]
[332817235,1721547788498,156.81,0.00018849,30]
[332817236,1721547853268,500.0,0.00012872,2]
[332817237,1721547863375,250.0,0.00012859,2]
[332817238,1721547900659,838.6,0.00010967,2]
[332817239,1721547984506,173.86,0.00013067,2]
[332817242,1721547995395,150.66623924,0.000126,2]
[332817243,1721548134887,3524.16059928,0.00013066,2]
[332817244,1721548136529,365.65255507,0.00013066,2]
[332817245,1721548141401,200.0,0.00012819,2]
[332817249,1721548198025,158.3648367,0.00013066,2]
[332817250,1721548231657,-838.6,0.00013231,2]
[332817251,1721548231666,-1282.42287635,0.00013297,2]
[332817252,1721548231680,-1833.11701042,0.00013297,2]
[332817253,1721548231689,-300.0,0.000134,4]
[332817254,1721548231699,-1445.06542743,0.00013499,2]
[332817255,1721548231708,-700.0,0.000135,4]
[332817256,1721548231719,-1296.43589473,0.0001351,2]
[332817257,1721548231728,-356.46971928,0.00013561,2]
[332817258,1721548231748,-84.83809691,0.00013561,2]
[332817259,1721548231757,-1000.0,0.000136,4]
[332817260,1721548231767,-157.60959533,0.0001367,2]
[332817261,1721548231777,-273.24854173,0.00013698,2]
[332817262,1721548231787,-418.22561677,0.00013698,2]
[332817263,1721548231796,-27.23622668,0.00013698,2]
[332817264,1721548231807,-272.76377332,0.00013698,2]
[332817265,1721548231817,-629.29,0.00013699,2]
[332817266,1721548231826,-261.90622668,0.00013699,2]
[332817267,1721548231838,-96.78377332,0.00013699,2]
[332817268,1721548231847,-389.83449269,0.00013699,2]
[332817269,1721548231858,-514.74550731,0.00013699,2]
[332817270,1721548231868,-250.0,0.00013699,2]
[332817271,1721548231877,-310.25850407,0.00013699,2]
[332817272,1721548231887,-499.99,0.000137,2]
[332817273,1721548231896,-1066.95949316,0.000137,5]
[332817274,1721548231907,-333.04050684,0.000137,5]
[332817275,1721548231917,-155.0,0.0001372,2]
[332817276,1721548231931,-265.08570858,0.0001372,2]
[332817277,1721548231941,-150.0,0.0001374,2]
[332817278,1721548231949,-3253.23311081,0.00013741,2]
[332817279,1721548231970,-1437.22216896,0.00013741,2]
[332817280,1721548231982,-44445.43595729,0.00013741,2]
[332817281,1721548231993,-49161.78484149,0.00013741,2]
[332817282,1721548232015,-5298.34802195,0.00013741,2]
[332817283,1721548232027,-3798.3477175,0.00013741,2]
[332817284,1721548232039,-4410.628182,0.00013741,2]
[332817285,1721548232048,-1843.84369197,0.0001379,2]
[332817286,1721548232058,-360.73308123,0.00013799,2]
[332817287,1721548232067,-208.67051965,0.000138,2]
[332817288,1721548232076,-1676.12452515,0.000138,5]
[332817289,1721548232088,-23.87547485,0.000138,5]
[332817290,1721548232098,-159.40595947,0.000138,2]
[332817291,1721548232108,-269.63657269,0.00013825,2]
[332817292,1721548232118,-183.44772535,0.0001387,2]
[332817293,1721548232128,-333.79831962,0.00013879,2]
[332817294,1721548232137,-191.57227985,0.00013879,2]
[332817295,1721548232147,-4730.97807137,0.0001388,2]
[332817296,1721548232159,-16123.22024115,0.0001388,2]
[332817297,1721548232173,-4265.1967325,0.0001388,2]
[332817298,1721548232183,-1235.66988396,0.0001388,2]
[332817299,1721548232195,-515.4161314,0.0001388,2]
[332817301,1721548232206,-762.0960762,0.0001388,2]
[332817302,1721548232232,-4588.20598836,0.0001388,2]
[332817305,1721548237715,-3511.99297866,0.0001388,2]
[332817306,1721548237729,-609.55481835,0.0001388,2]
[332817307,1721548237803,-67810.4380743,0.0001388,2]
[332817308,1721548237817,-4599.13075618,0.0001388,2]
[332817309,1721548237830,-372.44866107,0.0001388,2]
[332817310,1721548237843,-556.34975306,0.0001388,2]
[332817311,1721548237857,-1340.01178555,0.0001388,2]
[332817312,1721548237889,-1189.99134495,0.0001388,2]
[332817313,1721548237902,-1921.952907,0.0001388,2]
[332817314,1721548237916,-2993.0852802,0.0001388,2]
[332817315,1721548237930,-33781.6269575,0.0001388,2]
[332817316,1721548237954,-1165.26374629,0.0001388,2]
[332817317,1721548237968,-727.83673244,0.0001388,2]
[332817318,1721548237981,-597.24,0.0001388,2]
[332817319,1721548238009,-3121.61111413,0.0001388,2]
[332817323,1721548240368,-160.86395712,0.00013799,2]
[332817324,1721548240378,-172.8535084,0.0001388,2]
[332817325,1721548240402,-549.4996709,0.0001388,2]
[332817326,1721548240447,-13042.14392744,0.0001388,2]
[332817327,1721548240459,-51500.21856545,0.0001388,2]
[332817328,1721548240470,-4195.87660269,0.0001388,2]
[332817329,1721548240482,-4019.09127962,0.0001388,2]
[332817330,1721548240494,-315.6,0.0001388,2]
[332817331,1721548240507,-1502.46996613,0.0001388,2]
[332817332,1721548240536,-332.5317,0.0001388,2]
[332817333,1721548240550,-514.34371752,0.0001388,2]
[332817334,1721548240570,-1292.76814614,0.0001388,2]
[332817335,1721548240582,-51381.54351131,0.0001388,2]
[332817336,1721548240593,-43963.15270638,0.0001388,2]
[332817337,1721548240605,-573.27624306,0.0001388,2]
[332817338,1721548240630,-4608.46810061,0.0001388,2]
[332817339,1721548240702,-85772.84056969,0.0001388,2]
[332817340,1721548240769,-4732.40441512,0.0001388,2]
[332817341,1721548242836,-1963.95623651,0.0001388,2]
[332817342,1721548242847,-1144.36375668,0.0001388,2]
[332817343,1721548242859,-656.85,0.0001388,2]
[332817344,1721548242871,-666.31489413,0.0001388,2]
[332817345,1721548242973,-4507.50040909,0.0001388,2]
[332817346,1721548243004,-954402.319455,0.0001388,2]
[332817347,1721548243014,-197.1680471,0.00013899,2]
[332817348,1721548243023,-4671.13999018,0.000139,2]
[332817349,1721548243034,-1009.0,0.000139,5]
[332817350,1721548243044,-300.0,0.000139,5]
[332817351,1721548243054,-30723.0602525,0.000139,3]
[332817352,1721548243063,-191.87,0.00013973,2]
[332817353,1721548243074,-1766.68524541,0.00013999,5]
[332817354,1721548243083,-976151.24702852,0.00014,2]
[332817355,1721548243117,-489.29187735,0.00014,2]
[332817356,1721548243137,-695.84866301,0.00014,2]
[332817357,1721548243148,-2003.46125368,0.00014,2]
[332817358,1721548243164,-899.3916763,0.00014,2]
[332817359,1721548243175,-3028.97143809,0.00014,2]
[332817360,1721548243187,-3799.999993,0.00014,2]
[332817361,1721548243199,-2743.43994,0.00014,2]
[332817362,1721548243210,-3918.7910805,0.00014,2]
[332817363,1721548243267,-574762.64603433,0.00014,2]
[332817364,1721548243280,-985.15554843,0.00014,2]
[332817365,1721548243291,-1276.4995102,0.00014,2]
[332817419,1721548246369,-319.86602873,0.00013799,2]
[332817420,1721548246379,-115.44986527,0.00014,2]
[332817421,1721548246395,-418.08558349,0.00014,2]
[332817422,1721548246407,-2956.77375,0.00014,2]
[332817423,1721548246424,-2698.18765512,0.00014,2]
[332819174,1721548322467,156.81,0.00019675,30]
[332819179,1721548470255,887.0,0.0001399,30]
[332819180,1721548470994,887.0,0.0001398,30]
[332819181,1721548471684,887.0,0.0001397,30]
[332819183,1721548591725,621.0,0.0001399,30]
[332819184,1721548592468,621.0,0.0001398,30]
[332819185,1721548593003,621.0,0.0001397,30]
[332819186,1721548711573,434.0,0.0001399,30]
[332819187,1721548712051,434.0,0.0001398,30]
[332819188,1721548712539,434.0,0.0001397,30]
[332819189,1721548832757,304.0,0.0001399,30]
[332819190,1721548833795,304.0,0.0001398,30]
[332819191,1721548833932,304.0,0.0001397,30]
[332819192,1721548936148,156.56,0.00018849,30]
[332819193,1721548951729,213.0,0.0001399,30]
[332819194,1721548952178,213.0,0.0001398,30]
[332819195,1721548952965,213.0,0.0001397,30]
[332819196,1721549006881,871.19,0.0001133,2]
[332819197,1721549072025,150.5,0.0001399,30]
[332819198,1721549072740,150.5,0.0001398,30]
[332819199,1721549073375,150.5,0.0001397,30]
[332819200,1721549192073,150.5,0.0001399,30]
[332819201,1721549192130,681.17259465,0.00013066,2]
[332819202,1721549192550,150.5,0.0001398,30]
[332819203,1721549193045,150.5,0.0001397,30]
[332819213,1721549265048,403.0,0.00025008,120]
[332819214,1721549268644,2875.8,0.00012967,2]
[332819215,1721549312363,150.5,0.0001399,30]
[332819216,1721549313177,150.5,0.0001398,30]
[332819217,1721549313426,291.0,0.0001397,30]
[332819218,1721549343114,863.7364,0.00013031,2]
[332819219,1721549346385,617.26671408,0.00025,120]
[332819220,1721549425647,24761.55604362,0.00013,2]
[332819221,1721549428075,256.0,0.00013058,2]
[332819226,1721549431833,-1320.15039067,0.00013101,2]
[332819227,1721549431887,-653.26372546,0.00013101,2]
[332819228,1721549431900,-2886.07588387,0.00013101,2]
[332819229,1721549431909,-160.0,0.00013123,2]
[332819230,1721549431920,-468.17,0.00013248,2]
[332819231,1721549431930,-300.0,0.00013282,2]
[332819232,1721549431939,-2729.36683396,0.00013297,2]
[332819233,1721549431950,-500.0,0.00013305,2]
[332819234,1721549431960,-250.0,0.00013305,2]
[332819235,1721549431969,-15443.85928878,0.0001351,2]
[332819236,1721549431979,-871.19,0.00013594,2]
[332819237,1721549431989,-150.0,0.00013698,2]
[332819238,1721549431999,-778.39,0.00013699,2]
[332819239,1721549432008,-250.0,0.00013699,2]
[332819240,1721549432018,-285.29,0.00013699,2]
[332819241,1721549432028,-10528.40518333,0.00013699,2]
[332819242,1721549432038,-197.94184,0.0001386,2]
[332819243,1721549432047,-197.94184,0.0001386,2]
[332819244,1721549432057,-197.94184,0.0001386,2]
[332819245,1721549432066,-197.94185,0.0001386,2]
[332819246,1721549432076,-197.94185,0.0001386,2]
[332819247,1721549432085,-245.96444197,0.00013889,2]
[332819248,1721549432094,-2647.4202,0.0001389,2]
[332819249,1721549432104,-13108.3001,0.0001389,2]
[332819250,1721549432113,-754.2244,0.0001389,2]
[332819251,1721549432123,-2429.9035,0.0001389,2]
[332819252,1721549432132,-2748.8272,0.0001389,2]
[332819253,1721549432142,-499.99,0.0001389,2]
[332819254,1721549432152,-220.88,0.0001389,3]
[332819255,1721549432161,-1659.4593228,0.00013891,2]
[332819256,1721549432172,-324.65977308,0.00013891,2]